Cogmind - Beta 14 @@@ ROGUE MODE // 2024.08.16 @ 16:01:10 Player: Zaros426 Result: Destroyed by D-53 Grenadier with Mini Grenade Launcher Performance ------------- Evolutions (0) 0 Regions Visited (2) 400 Robots Destroyed (35) 175 Value Destroyed (551) 551 Prototype IDs (2) 40 Alien Tech Used (0) 0 Bonus (0) 0 TOTAL SCORE: 1166 Bonus ------- None Cogmind --------- Core Integrity 0/250 Matter 290/300 Energy 69/100 System Corruption 2% Temperature Cool (35) Movement Core (450) Ox8 Location -10/Mines Parts ------- > --- POWER (1) -------- (None) > --- PROPULSION (2) --- (None) > --- UTILITY (2) ------ Large Storage Unit Light Armor Plating > --- WEAPON (2) ------- Medium Laser > --- INVENTORY (15) --- Heat Sink Large Storage Unit Signal Interpreter Signal Interpreter Seismic Detector Light Armor Plating Light Armor Plating Medium Laser Datajack Mining Laser Peak State ------------ > --- POWER ------------ Ion Engine > --- PROPULSION ------- Light Treads Light Treads > --- UTILITY ---------- Improved Heat Sink Large Storage Unit > --- WEAPON ----------- Medium Laser Beam Cannon > --- INVENTORY -------- Ion Engine Heat Sink Large Storage Unit Signal Interpreter Signal Interpreter Seismic Detector Light Armor Plating Light Armor Plating EM Pulse Gun Medium Laser Datajack Mining Laser [Rating: 10] Favorites ----------- Power Ion Engine Engine Ion Engine Propulsion Light Treads Treads Light Treads Utility Large Storage Unit Device Improved Heat Sink Storage Large Storage Unit Weapon Medium Laser Energy Gun Medium Laser Energy Cannon Beam Cannon Special Weapon Welding Torch Build | -11 -10 -10 ------- Run | Yrd Mat Min Slots Evolved . | . . . Power . | . . . Propulsion . | . . . Utility . | . . . Weapon . | . . . Parts Attached 17 | 7 6 4 Power 2 | 1 . 1 Engine 2 | 1 . 1 Core . | . . . Reactor . | . . . Propulsion 2 | 2 . . Treads 2 | 2 . . Leg . | . . . Wheel . | . . . Hover . | . . . Flight . | . . . Utility 7 | 2 3 2 Device 4 | 1 2 1 Storage 2 | 1 1 . Processor . | . . . Hackware . | . . . Protection 1 | . . 1 Artifact . | . . . Weapon 6 | 2 3 1 Energy Gun 3 | 2 . 1 Energy Cannon 2 | . 2 . Ballistic Gun . | . . . Ballistic Cannon . | . . . Launcher . | . . . Special Weapon 1 | . 1 . Impact Weapon . | . . . Slashing Weapon . | . . . Piercing Weapon . | . . . Special Melee Weapon . | . . . Unidentified Prototypes . | . . . Parts Lost 7 | . . 7 Power 1 | . . 1 Propulsion 2 | . . 2 Utility 2 | . . 2 Weapon 2 | . . 2 Highest Loss Streak 6 | . . 6 To Critical Strikes . | . . . Average Slot Usage (%) 99 | . 99 98 Engine 13 | . 14 13 Treads 27 | . 28 27 Device 13 | . 14 13 Storage 14 | . 14 14 Energy Gun 14 | . 14 14 Energy Cannon 13 | . 13 13 Peak Build Rating 10 | 7 10 10 Average Rating 8 | 5 8 9 On Entrance 5 | . 7 10 Naked Turns . | . . . Heaviest Build 31 | 15 31 31 Greatest Support 40 | 40 40 40 Greatest Overweight (x) 3 | 3 . . Average Overweight (x) . | . . . Largest Inventory Capacity 15 | 8 15 15 Average Capacity 13 | 7 13 15 Most Carried 15 | 3 13 15 Average Carried 9 | 1 9 12 Final Capacity 15 | 8 15 15 Final Carried 13 | 3 13 10 Class Distribution -------------------- 100% | Mutant Dominant Class ---------------- Mutant | -10/Materials Mutant | -10/Mines Resources | -11 -10 -10 ----------- Run | Yrd Mat Min Matter Collected 402 | 270 97 35 Remotely . | . . . Salvage Created 1108 | 137 813 158 Parts 62 | 12 40 10 Haulers Intercepted 1 | . 1 . Recyclers Shooed . | . . . Parts Field Recycled . | . . . Retrieved Matter . | . . . Parts Self-Destructed . | . . . Prevented . | . . . Kills | -11 -10 -10 ------- Run | Yrd Mat Min Combat Hostiles Destroyed 19 | . 13 6 Guns 3 | . 1 2 Cannons 16 | . 12 4 Classes Destroyed 10 | 3 6 1 Worker 5 | 1 3 1 Builder 1 | . 1 . Tunneler 4 | 4 . . Hauler 1 | . 1 . Recycler 3 | 1 2 . Mechanic 1 | . 1 . Watcher 3 | . 3 . Swarmer 8 | . 6 2 Grunt 9 | . 7 2 Assembled 2 | . . 2 Best Kill Streak 5 | 3 5 3 Combat Bots Only 4 | . 4 2 Max Kills in Single Turn 1 | 1 1 1 Gunslinging . | . . . Exploded . | . . . Melee . | . . . Uniques/NPCs Destroyed . | . . . Combat | -11 -10 -10 -------- Run | Yrd Mat Min Hostile Shots Fired 75 | . 36 39 Missed 17 | . 11 6 Damage Taken 929 | . 246 683 Core 262 | . 54 208 Absorbed by Shields . | . . . Core Remaining (%) 100 | 100 . . Volleys Fired 88 | 16 52 20 Largest 2 | 2 2 2 Hottest 110 | 100 110 110 Shots Fired 167 | 32 95 40 Gun 97 | 32 43 22 Cannon 68 | . 50 18 Launcher . | . . . Special 2 | . 2 . Kinetic . | . . . Thermal 165 | 32 95 38 Explosive . | . . . Electromagnetic 2 | . . 2 Robot Hit Streak 13 | 3 13 4 Robot Miss Streak 4 | 3 4 4 Penetration Max . | . . . Secondary Targets . | . . . Shots Hit Robots 101 | 19 61 21 Core Hits 47 | 7 28 12 Critical Kills . | . . . Critical Parts Destroyed . | . . . Critical Strikes 5 | 3 1 1 Burn 5 | 3 1 1 Melee Attacks . | . . . Impact . | . . . Slashing . | . . . Piercing . | . . . Sneak Attacks . | . . . Combat Hostiles . | . . . Follow-up Attacks . | . . . Damage Inflicted 1517 | 239 977 301 Guns 725 | 239 326 160 Cannons 789 | . 651 138 Explosions . | . . . Melee . | . . . Ramming 3 | . . 3 Kinetic . | . . . Thermal 1493 | 239 977 277 Explosive . | . . . Electromagnetic 21 | . . 21 Impact . | . . . Slashing . | . . . Piercing . | . . . Highest Corruption 2 | . 2 2 Average Corruption 2 | . 2 2 Corruption Purged . | . . . Corruption Blocked . | . . . Effects 20 | . 12 8 Message Errors 3 | . 3 . Matter Fused 7 | . 5 2 Heat Flow Errors 4 | . 2 2 Energy Discharges 3 | . . 3 Data Loss (minor) 3 | . 2 1 Overload Shots . | . . . Overflow Damage 2 | . 2 . Projectiles 2 | . 2 . Explosions . | . . . Melee . | . . . Knockbacks . | . . . Impact . | . . . Kinetic . | . . . Secondary . | . . . Self-Inflicted Damage . | . . . Shots . | . . . Rammed 1 | . . 1 Targets Rammed 1 | . . 1 Kicked . | . . . Crushed . | . . . Highest Temperature 460 | 195 460 188 Average Temperature 71 | 87 79 31 Received Heat Transfer 120 | . 78 42 Effects 1 | . 1 . Shutdowns 1 | . 1 . Siege Activations . | . . . Robots Corrupted . | . . . Combat Hostiles . | . . . Parts Fried . | . . . Impact Corruptions . | . . . Robots Melted . | . . . Combat Hostiles . | . . . Parts Melted 10 | 1 7 2 Heat Transferred 4107 | 925 2405 777 Parts Sabotaged . | . . . Parts Stolen . | . . . Parts Stripped . | . . . Power Chain Reactions . | . . . Alert | -11 -10 -10 ------- Run | Yrd Mat Min Peak Influence 230 | 30 209 230 Initial 65 | . 19 65 Average 85 | 15 73 155 Maximum Alert Level 1 | . 1 1 Low Security (%) 91 | 100 95 75 Level 1 8 | . 4 24 Level 2 . | . . . Level 3 . | . . . Level 4 . | . . . Level 5 . | . . . High Security . | . . . Max Security . | . . . Squads Dispatched 1 | . 1 . Investigation 1 | . 1 . Extermination . | . . . Reinforcement . | . . . Assault . | . . . Garrison . | . . . Intercept . | . . . Searches Triggered . | . . . Construction Impeded . | . . . Haulers Reinforced . | . . . Active Scanning Responses . | . . . Cargo Convoy Interrupts . | . . . Stealth | -11 -10 -10 --------- Run | Yrd Mat Min Distress Signals 3 | . 3 . Communications Jammed . | . . . Distress Signals . | . . . Times Spotted 27 | . 18 9 Peak Tracking Total 4 | . 4 3 Tactical Retreats 2 | . 1 1 Traps | -11 -10 -10 ------- Run | Yrd Mat Min Traps Triggered 2 | . 2 . Indirectly . | . . . Trap Hack Attempts . | . . . Triggered . | . . . Disarmed . | . . . Reprogrammed . | . . . Reused 1 | . . 1 Traps Extracted . | . . . Installed 3 | . . 3 Triggered 1 | . . 1 Most Traps Carried 3 | . . 3 Machines | -11 -10 -10 ---------- Run | Yrd Mat Min Machines Disabled 2 | . 1 1 Max in Single Turn 1 | . 1 1 Machines Repaired . | . . . Machines Dismantled . | . . . Machines Sabotaged . | . . . Overloaded Fab Kills . | . . . Hacking | -11 -10 -10 --------- Run | Yrd Mat Min Machines Accessed 8 | . 8 . Terminals 8 | . 8 . Fabricators . | . . . Repair Stations . | . . . Recycling Units . | . . . Scanalyzers . | . . . Garrison Access . | . . . Total Hacks 19 | . 19 . Successful 9 | . 9 . Failed 10 | . 10 . Catastrophic 1 | . 1 . Database Lockouts . | . . . Manual 8 | . 8 . Terminals 19 | . 19 . Fabricators . | . . . Repair Stations . | . . . Recycling Units . | . . . Scanalyzers . | . . . Garrison Access . | . . . Terminal Hacks 7 | . 7 . Robot Analysis 2 | . 2 . Prototype ID Bank 1 | . 1 . Branch Access Points 1 | . 1 . Terminal Index 1 | . 1 . Alert Level 1 | . 1 . Locate Traps 1 | . 1 . Fabricator Hacks . | . . . Repair Station Hacks . | . . . Recycling Unit Hacks . | . . . Scanalyzer . | . . . Garrison Access Hacks . | . . . Unauthorized Hacks 2 | . 2 . Terminals 2 | . 2 . Botnet 2 | . 2 . Fabricators . | . . . Repair Stations . | . . . Recycling Units . | . . . Scanalyzers . | . . . Garrison Access . | . . . Data Cores Recovered . | . . . Used . | . . . Hacking Detections 7 | . 7 . Full Trace Events . | . . . Feedback Events . | . . . Feedback Blocked . | . . . Robot Schematics Acquired . | . . . Robots Built . | . . . Authchips . | . . . Time . | . . . Total Robot Build Rating . | . . . Part Schematics Acquired . | . . . Parts Built . | . . . Authchips . | . . . Time . | . . . Total Part Build Rating . | . . . Parts Repaired . | . . . Time . | . . . Parts Recycled . | . . . Recycled Matter . | . . . Retrieved Matter . | . . . Retrieved Components . | . . . Parts Scanalyzed . | . . . Part Schematics Acquired . | . . . Parts Damaged . | . . . Bothacking | -11 -10 -10 ------------ Run | Yrd Mat Min Used RIF Installer . | . . . Robots Hacked . | . . . Non-combat . | . . . Combat . | . . . Robot Hacks Applied . | . . . Relay Couplers Released . | . . . Fabnet Peak Effective % . | . . . Robots Rewired . | . . . Allies Hacked . | . . . Hacks Repelled . | . . . Allies | -11 -10 -10 -------- Run | Yrd Mat Min Total Allies . | . . . Largest Group . | . . . Highest-Rated Group . | . . . Highest-Rated Ally . | . . . Total Orders . | . . . Ally Attacks . | . . . Total Damage . | . . . Kills . | . . . Allies Corrupted . | . . . Allies Melted . | . . . Intel | -11 -10 -10 ------- Run | Yrd Mat Min Robot Analysis Total 2 | . 2 . Derelict Logs Recovered 1 | . . 1 Drone Launches . | . . . Drone Recoveries . | . . . Exploration | -11 -10 -10 ------------- Run | Yrd Mat Min Turns Passed 1721 | 192 1144 385 Spaces Moved 853 | 82 580 191 Core 10 | 10 . . Treads 843 | 72 580 191 Legs . | . . . Wheels . | . . . Hover . | . . . Flight . | . . . Fastest Speed 50 | 50 160 160 Average Speed 160 | 160 160 160 Slowest Speed 200 | 200 160 160 Overloaded Moves . | . . . Propulsion Burnouts . | . . . Robots Hopped . | . . . Cave-ins Triggered . | . . . Exploration Rate (%) 46 | 5 89 45 Regions Visited 2 Branch Regions 1 Pre-discovered Areas . | . . . Known Exits Taken 1 | . 1 . Unknown Exits Taken 1 | 1 . . Scrap Searched . | . . . Spaces Dug . | . . . Terrain Destroyed . | . . . Melee . | . . . Projectile . | . . . AOE . | . . . Terrain Rammed . | . . . Walls Destroyed . | . . . Machines Disabled . | . . . Actions | -11 -10 -10 --------- Run | Yrd Mat Min Total 1040 | 107 702 231 Wait 53 | . 48 5 Move 851 | 81 579 191 Hop . | . . . Pick Up 18 | 3 12 3 Fast Attach 9 | 7 1 1 Attach 3 | . 1 2 Detach . | . . . Swap 5 | . 4 1 Drop 9 | . 5 4 Fire 88 | 16 52 20 Melee . | . . . Ram . | . . . Kick . | . . . Crush 1 | . . 1 Escape Stasis . | . . . Rewire . | . . . Trap 3 | . . 3 Miscellaneous . | . . . Route ------- -11/Scrapyard -10/Materials (discovered 4 exits: [*Mat x2] / *Min x2) -10/Mines History --------- Turn | Location | Event 20 | -11/Scrapyard | Discovered new exit (range 15) 193 | -11/Scrapyard | Entered Materials 302 | -10/Materials | Build established: Mutant 350 | -10/Materials | Discovered new exit (range 14) 428 | -10/Materials | Discovered new exit (range 8) 577 | -10/Materials | Discovered new exit (range 14) 677 | -10/Materials | Identified exit to Mines 882 | -10/Materials | Discovered new exit (range 10) 1337 | -10/Materials | Entered Mines 1382 | -10/Mines | Assembled infested the area 1401 | -10/Mines | Found a hidden stash of uninstalled traps 1696 | -10/Mines | Learned 8 Materials zone layouts 1720 | -10/Mines | Core integrity fell below 50% 1722 | -10/Mines | Core integrity fell below 20% 1722 | -10/Mines | Destroyed by D-53 Grenadier with Mini Grenade Launcher Last Messages --------------- 01557_ System corrupted: Energy discharge (-52). 01587_ System corrupted: Component data lost. 01624_ S-10 Pest suffers critical hit (Burn). 01624_ Lgt. Assault Rifle melted. 01624_ S-10 Pest destroyed. 01624_ Seismic Survey Station disabled. 01631_ K-01 Serf collects debris. 01659_ System corrupted: Energy discharge (-95). 01664_ K-01 Serf collects debris. 01680_ Slammed into R-06 Scavenger. 01686_ K-01 Serf destroyed. 01696_ Acquired derelict log, extracted data. Data stored: Materials zone layouts (x8). 01713_ Beam Cannon destroyed. 01715_ Imp. Heat Sink destroyed. 01716_ The unstable cave ceiling collapses. 01717_ Lgt. Treads destroyed. 01717_ Ion Engine destroyed. 01717_ Lgt. Treads destroyed. 01720_ EM Pulse Gun destroyed. Map ----- +----------------------------------------------------+ | ???????????????????????????????????? | | ???????????????????????????????????? | | ???????????????????????????????????? | | ???????????????????????????????????? | | ???????????????????????????????????? | | ???????????????????????????????????? | | ???????????????????????????????????? | | ???????????????????????????????????? | | ???????????????????????????????????? | | ???????????????????????????????????? | | ???????????????????????????????????? | | ???????????????????????????????????? | | ???????????????????????????????????? | | ???????????????????????????????????? | | ???????????????????????????????????? | | ???????????????????????????????????? | | ?????????????????????? ????????????? | | ???????????????????? #???????????? | | ?????????????????? #???????????? | | ?????????????????? #????????????? | | ????????######???? ###??????????? | | ???????## # ###? u $ ?????????? | | ??????## # d k?????????? | | ??????# d #??????????? | | ??????# #???????????? | | ??????# @ #???????????????? | | ??????## # #???????????????? | | ??????# # #???????????????? | | ??????## ## #???????????????? | | ???????## ### #???????????????? | | ????????### #### #???????????????? | | ??????????# #???????###???????? | | ??????????###### #??????# ##??????? | | ???????????????#*#?????# ##?????? | | ??????????######%#????# #?????? | | ??????????# % %=#??## " #?????? | | ??????????# #####?## #??????? | | ??????????# #???### ????????? | | ??????????# ##### #???????????? | | ??????????# #????????????? | | ??????????# #????????????? | | ??????????# ######% #???????#####? | | ??????????# ######## #??????## ## | | ??????????# ? #??# #???#### # | | ??????##### #?# #??# ##### # | | ?????## ### #### # | | ?????# ## ## # # | | ?????# ######### ## # | | ????## #?????## ### # | | ????# ### #??????####?# | +----------------------------------------------------+ Best States ------------- Heat Dissipation 39 Energy Generation 10 Energy Capacity 250 Matter Stores 300 Matter Capacity 300 Sight Range 16 Terrain Scan Density 10 Evasion (%) 40 Recoil Reduction 2 Item Schematics ----------------- None Robot Schematics ------------------ None Fabricated ------------ Nothing Alien Tech Used ----------------- None Achievements -------------- None Challenges ------------ None Game ------ Seed BombMomentumCleaver Manual? 0 Play Time 00:14:40 Cumulative 12.7 hours Start 2024.08.16 @ 15:45:47 End 2024.08.16 @ 16:01:10 Sessions 2 Manual Loads 0 Difficulty Rogue Special Mode None Game No. 12 Rogue 12 Adventurer 0 Explorer 0 Win Type - Total 0 Types 0/0/0/0/0/0/0/0/0 Lore% 13 Gallery% 16 Achievement% 24 Wizard Run 0 Options --------- Layout 1 ASCII 0 Keyboard 0 Movement Numpad Keybinds 0 Fullscreen 1 Font 24/Smallcaps Map View 50x35 Zoom Use 0% Tactical HUD 1 Map Filters NONE Filters NONE Steam 0 RUN: 7b8a473c-a9ab-471c-9d82-f3cc46e3f138